bitfinex/quotes_ETHUSD_20220202
["timestamp","ask_amount","ask_price","bid_price","bid_amount"]
[1643807981200,0.21613089,2784.5,2784.3,0.512]
[1643807982005,0.21613089,2784.5,2784.4,0.9467731]
[1643807982201,0.21613089,2784.5,2784.2,0.1]
[1643807983204,0.21613089,2784.5,2784.3,0.8594564]
[1643807983444,0.21613089,2784.5,2784.3,1.1594564]
[1643807984644,0.21613089,2784.5,2784.2,0.1]
[1643807985648,0.21613089,2784.5,2784.2,0.96809287]
[1643807985843,0.21613089,2784.5,2784.2,2.93927975]
[1643807986055,0.1794,2785.2,2784.2,2.93927975]
[1643807986248,0.1794,2785.2,2784.3,0.512]
[1643807986446,0.1794,2785.4,2784.3,0.512]
[1643807986646,2.06696,2785.7,2784.3,0.512]
[1643807986647,0.1794,2785.6,2784.4,2.00574293]
[1643807986846,0.79226118,2785.0,2784.5,0.512]
[1643807987294,0.26463183,2784.9,2784.5,0.812]
[1643807988501,0.26463183,2784.9,2784.5,0.512]
[1643807989100,0.26463183,2784.9,2784.2,0.4]
[1643807989301,0.1794,2784.8,2784.2,0.1]
[1643807990102,0.70719544,2784.5,2784.2,0.1]
[1643807990303,0.1794,2784.8,2784.2,0.99803]
[1643807990503,0.1794,2784.8,2784.3,0.3]
[1643807991347,0.19118725,2784.6,2784.4,3.59195]
[1643807991542,1.139,2785.3,2784.5,1.19789]
[1643807991543,0.1794,2785.2,2784.5,1.19789]
[1643807991744,0.1794,2785.2,2784.6,0.00159765]
[1643807991945,0.1794,2785.2,2784.5,1.19789]
[1643807992543,0.1294,2785.2,2785.0,0.89778]
[1643807992742,0.1794,2785.3,2785.0,2.09552]
[1643807992942,0.1794,2785.7,2785.0,2.09552]
[1643807993141,1.52408947,2785.6,2785.0,2.09552]
[1643807993342,0.1794,2785.5,2785.0,2.09552]
[1643807993547,1.52408947,2785.4,2785.0,2.09552]
[1643807993746,1.52408947,2785.4,2785.0,2.9932783]
[1643807994145,0.25493937,2785.5,2785.0,2.9932783]
[1643807994346,0.1794,2785.4,2785.0,2.9932783]
[1643807994549,0.1794,2785.4,2785.1,0.3]
[1643807994795,0.1794,2785.4,2785.1,3.48459906]
[1643807994995,0.1794,2785.4,2785.2,0.89763]
[1643807995292,0.25493937,2785.5,2785.2,0.89763]
[1643807995893,0.25493937,2785.5,2785.4,0.92793219]
[1643807996194,0.25493937,2785.5,2785.4,1.22793219]
[1643807996391,0.1794,2786.0,2785.4,1.22793219]
[1643807996598,1.52383175,2785.9,2785.4,1.22793219]
[1643807996792,1.52383175,2785.9,2785.4,1.52793219]
[1643807996995,0.1794,2786.4,2785.5,1.97553039]
[1643807997193,1.52372187,2786.3,2785.4,1.70733219]
[1643807997392,1.70312187,2786.2,2786.0,0.81297342]
[1643807997593,1.52372187,2786.1,2785.6,0.1794]
[1643807997794,1.52372187,2786.4,2785.6,0.6914]
[1643807997994,1.52372187,2786.3,2785.6,0.512]
[1643807998198,0.1794,2786.5,2785.7,2.0098627]
[1643807998199,1.52372187,2786.4,2785.7,2.0098627]
[1643807998447,1.52372187,2786.3,2785.8,0.512]
[1643807998650,0.1794,2786.7,2785.9,0.1794]
[1643807998853,1.52348674,2786.6,2786.0,0.512]
[1643807999050,1.52347252,2786.5,2786.0,0.512]
[1643807999357,1.52347252,2786.4,2786.1,0.89723]
[1643807999552,0.1794,2787.0,2786.2,0.512]
[1643807999750,1.71321727,2786.9,2786.2,1.112]
[1643808000051,1.52335085,2786.8,2786.2,1.112]
[1643808000849,0.79528094,2786.7,2786.2,1.112]
[1643808001050,1.52335085,2786.6,2786.2,1.112]
[1643808002493,0.67866017,2787.0,2786.2,1.2914]
[1643808002494,1.52335085,2786.5,2786.2,1.2914]
[1643808002694,1.52335085,2786.5,2786.3,0.89722]
[1643808003094,0.1794,2787.1,2786.3,1.89722]
[1643808003295,2.3813818,2787.1,2786.3,1.89722]
[1643808003498,1.52332163,2787.0,2786.3,1.89722]
[1643808003997,0.26105784,2786.4,2786.3,1.89722]
[1643808004196,1.78437947,2786.4,2786.3,1.0]
[1643808004401,1.47332163,2786.4,2786.3,1.0]
[1643808004598,1.58526916,2787.1,2786.2,1.2914]
[1643808004999,0.1794,2787.1,2786.6,0.81294233]
[1643808005197,0.85806017,2787.4,2786.6,0.512]
[1643808005397,0.24954018,2786.9,2786.6,0.52439187]
[1643808005599,0.24954018,2786.9,2786.6,0.70379187]
[1643808005797,0.24954018,2786.9,2786.6,0.6914]
[1643808006238,0.24954018,2786.9,2786.7,0.92182286]
[1643808006438,0.24954018,2786.9,2786.6,0.6914]
[1643808007444,0.24954018,2786.9,2786.7,0.74800379]
[1643808007645,0.24954018,2786.9,2786.5,1.7794]
[1643808007845,0.24954018,2786.9,2786.5,0.1794]
[1643808008147,0.24954018,2786.9,2786.3,0.1794]
[1643808008345,0.24954018,2786.9,2786.2,0.6914]
[1643808008543,0.91208239,2786.8,2786.3,0.68444029]
[1643808008746,0.20733714,2786.4,2786.3,0.68444029]
[1643808008944,0.1794,2787.3,2786.3,0.68444029]
[1643808008945,0.1794,2787.3,2786.3,1.58161789]
[1643808009146,0.1794,2787.3,2786.1,1.79431]
[1643808009147,0.1794,2787.3,2786.1,2.69143]
[1643808009350,0.1794,2787.3,2785.5,0.512]
[1643808009351,0.67866017,2786.9,2785.5,0.512]
[1643808009548,0.01234847,2786.6,2784.8,1.79491]
[1643808009798,0.01234847,2786.6,2785.2,1.79491]
[1643808009799,0.1794,2786.5,2785.2,1.79491]
[1643808010193,0.1794,2786.6,2785.4,0.75383206]
[1643808010592,5.0896627,2786.8,2785.4,0.75383206]
[1643808010593,0.1794,2786.7,2785.4,0.75383206]
[1643808010795,0.1794,2786.7,2785.4,1.35383206]
[1643808011197,0.19603897,2786.1,2785.4,1.35383206]
[1643808011397,0.90437665,2786.3,2785.4,1.35383206]
[1643808011797,0.90437665,2786.3,2785.4,2.25118206]
[1643808012098,0.90437665,2786.3,2785.7,0.8973449]
[1643808012404,0.90437665,2786.3,2785.8,0.3]
[1643808012598,1.09474855,2786.3,2785.8,0.6]
[1643808012797,0.1794,2786.7,2785.8,0.6]
[1643808012999,0.1794,2786.7,2786.0,0.89728]
[1643808013196,1.86806017,2787.1,2786.0,0.89728]
[1643808013197,0.1794,2787.0,2786.0,0.89728]
[1643808013439,0.1794,2787.0,2786.1,0.3]
[1643808013644,0.1794,2787.1,2786.1,0.3]
[1643808013845,0.89491297,2786.8,2786.2,0.66914814]
[1643808014046,0.1794,2786.7,2786.0,1.19728]
[1643808014246,0.1794,2786.7,2786.0,2.19728]
[1643808014847,0.1794,2786.7,2786.0,1.19728]
[1643808015049,0.1794,2786.7,2786.2,0.74322867]
[1643808015245,0.1794,2786.7,2786.2,0.3]
[1643808015447,0.1794,2786.7,2786.1,0.3]
[1643808015647,0.67477125,2786.8,2786.1,0.3]
[1643808016245,0.26409092,2786.7,2786.3,0.68997135]
[1643808016445,0.67477125,2786.8,2786.3,0.68997135]
[1643808016750,0.1794,2787.1,2786.3,0.98997135]
[1643808016947,0.1794,2787.2,2786.3,1.88719135]
[1643808017209,0.1794,2787.2,2786.3,2.18719135]
[1643808017604,0.1794,2787.2,2786.3,2.37784677]
[1643808017799,0.1794,2787.2,2786.8,0.70785491]
[1643808018001,0.1794,2787.2,2786.8,1.30785491]
[1643808018200,3.75775615,2787.7,2786.8,1.30785491]
[1643808018201,0.1794,2787.5,2786.8,1.30785491]
[1643808018605,0.24196962,2787.2,2786.8,0.6]
[1643808018806,0.24196962,2787.2,2786.7,1.79394]
[1643808019005,0.1794,2787.6,2786.7,0.3]
[1643808019204,0.1794,2787.6,2786.5,1.112]
[1643808019205,0.85806017,2787.6,2786.5,1.112]
[1643808019406,0.67866017,2787.6,2786.5,1.112]
[1643808019606,0.1794,2787.5,2786.5,1.112]
[1643808019804,0.1794,2787.5,2786.5,0.6]
[1643808019805,0.79427191,2787.1,2786.5,0.6]
[1643808020005,0.23495713,2786.8,2786.1,1.7943]
[1643808020209,0.23495713,2786.8,2785.9,1.79451]
[1643808021043,0.23495713,2786.8,2786.3,0.92113653]
[1643808021246,0.23495713,2786.8,2786.3,1.22113653]
[1643808021443,0.54427191,2787.1,2786.3,1.22113653]
[1643808021643,0.54427191,2787.1,2786.3,1.52113653]
[1643808022242,0.1794,2787.4,2786.3,1.52113653]
[1643808022445,0.22170361,2787.2,2786.3,2.22844296]
[1643808022849,0.22170361,2787.2,2786.3,2.03313653]
[1643808023046,0.1794,2787.5,2786.3,2.03313653]
[1643808023250,0.69806233,2787.3,2786.3,2.03313653]
[1643808023549,0.69806233,2787.3,2786.5,0.89714]
[1643808023747,0.69806233,2787.3,2786.5,1.49714]
[1643808023947,0.83212942,2786.8,2786.5,0.3]
[1643808024148,0.21554598,2786.6,2786.5,0.3]
[1643808024349,2.28291718,2787.4,2786.4,0.3]
[1643808024550,1.52345674,2787.3,2786.4,0.3]
[1643808024804,1.52345674,2787.3,2786.4,0.89719]
[1643808025106,2.4271303,2787.3,2786.5,0.512]
[1643808025303,1.52345674,2787.2,2786.5,0.812]
[1643808025508,1.52345674,2787.2,2786.8,0.88879819]
[1643808025904,1.52345674,2787.2,2786.8,1.18879819]
[1643808026103,0.1794,2787.6,2786.8,1.48879819]
[1643808026304,1.52322098,2787.5,2786.8,1.48879819]
[1643808027306,1.52322098,2787.4,2786.9,3.44878833]
[1643808027506,0.31739997,2787.8,2786.9,1.40902]
[1643808027704,0.31739997,2787.8,2787.0,0.6]
[1643808027705,1.52315124,2787.7,2787.0,0.6]
[1643808027904,1.52315124,2787.7,2787.0,1.112]
[1643808028548,1.52315124,2787.6,2787.3,0.67289589]
[1643808028751,0.1792,2788.0,2787.4,0.89684]
[1643808028948,2.43805615,2788.1,2787.5,0.512]
[1643808028949,1.52296388,2787.9,2787.5,0.512]
[1643808029147,1.52296388,2787.8,2787.5,0.812]
[1643808029344,6.7657,2788.3,2787.5,1.112]
[1643808029345,2.43805615,2788.2,2787.5,1.112]
[1643808029549,1.52287687,2788.1,2787.5,1.112]
[1643808029745,1.52287687,2788.1,2787.6,1.79341]
[1643808029964,1.52287687,2788.1,2787.7,0.512]
[1643808030150,1.52287687,2788.1,2787.7,1.112]
[1643808030345,1.52287687,2788.1,2787.7,2.112]
[1643808030547,1.52287687,2788.1,2787.9,0.7028656]
[1643808030755,0.21674559,2788.2,2788.0,0.512]
[1643808030955,1.5228377,2788.1,2788.0,0.512]
[1643808031349,1.5228377,2788.1,2788.0,0.812]
[1643808031552,0.80482763,2788.5,2788.0,0.812]
[1643808031553,1.5228377,2788.3,2788.0,0.812]
[1643808031752,0.98402763,2788.5,2788.0,0.812]
[1643808031753,1.5228377,2788.2,2788.0,1.112]
[1643808031952,0.98402763,2788.5,2788.0,1.112]
[1643808031953,1.5228377,2788.1,2788.0,1.112]
[1643808032202,1.5228377,2788.4,2788.0,2.00867]
[1643808032403,1.78826529,2788.3,2788.0,2.00867]
[1643808032601,0.98402763,2788.5,2788.0,2.00867]
[1643808032602,1.5228377,2788.2,2788.0,2.00867]
[1643808032801,1.5228377,2788.1,2788.0,2.00867]
[1643808033203,1.5228377,2788.5,2788.0,2.00867]
[1643808033407,1.5228377,2788.4,2788.0,2.00867]
[1643808033607,1.5228377,2788.3,2788.0,2.00867]
[1643808034007,2.26686128,2788.2,2788.0,0.38436468]
[1643808034208,2.26686128,2788.2,2787.4,1.512]
[1643808034209,1.5228377,2788.1,2787.4,1.512]
[1643808034609,1.5228377,2788.1,2787.4,2.30557]
[1643808035010,0.24144389,2788.0,2787.4,2.30557]
[1643808035211,1.5228377,2787.9,2787.5,0.3]
[1643808035512,0.24144389,2788.0,2787.5,0.3]
[1643808035809,0.24144389,2788.0,2787.5,1.3]
[1643808035810,1.52283926,2787.9,2787.5,1.3]
[1643808037048,1.52283926,2787.9,2787.6,0.512]
[1643808037246,1.52283926,2787.9,2787.6,0.812]
[1643808039353,1.52283926,2787.9,2787.6,0.512]
[1643808039998,0.67560873,2787.7,2787.6,0.512]
[1643808040399,2.19844799,2787.7,2787.6,0.512]
[1643808040898,2.19844799,2787.7,2787.6,0.812]
[1643808041299,2.19844799,2787.7,2787.6,1.112]
[1643808041500,0.67560873,2787.7,2787.6,1.112]
[1643808041702,0.1792,2787.9,2787.6,1.112]
[1643808041898,1.52283,2787.8,2787.6,1.112]
[1643808042100,0.24144389,2788.0,2787.6,0.812]
[1643808042101,1.52283,2787.7,2787.6,0.812]
[1643808042300,1.52283,2787.9,2787.6,0.512]
[1643808042502,1.52283,2787.9,2787.2,1.812]
[1643808042503,1.70203,2787.9,2787.2,1.812]
[1643808042700,0.23301684,2787.3,2787.2,2.112]
[1643808042905,0.23301684,2787.3,2787.2,1.112]
[1643808043307,0.23301684,2787.3,2787.2,0.6]
[1643808043308,1.01120288,2787.3,2787.2,0.6]
[1643808043550,1.01120288,2787.3,2786.8,1.512]
[1643808043757,1.01120288,2787.3,2786.8,1.812]
[1643808043950,1.01120288,2787.3,2786.8,2.112]
[1643808044353,1.01120288,2787.3,2786.8,0.512]
[1643808044753,1.52311374,2787.2,2786.8,0.512]
[1643808044955,0.1794,2787.2,2786.8,0.512]
[1643808045554,1.01120288,2787.3,2786.8,0.812]
[1643808045755,1.01120288,2787.3,2786.9,1.95234493]
[1643808045956,1.01120288,2787.3,2787.0,0.512]
[1643808046155,1.01120288,2787.3,2787.1,0.512]
[1643808046359,1.01120288,2787.3,2787.2,0.512]
[1643808047212,1.01120288,2787.3,2786.8,2.112]
[1643808047412,1.01120288,2787.3,2786.8,1.112]
[1643808047612,1.01120288,2787.3,2786.8,2.112]
[1643808048412,0.23301684,2787.3,2786.8,2.112]
[1643808048611,0.1794,2787.8,2786.9,0.8969]
[1643808048812,1.52298717,2787.7,2787.0,2.9962989]
[1643808049018,0.1792,2787.6,2787.0,3.2962989]
[1643808049216,1.52298717,2787.5,2787.1,1.0]
[1643808049616,0.24060339,2787.2,2786.8,1.512]
[1643808049815,0.1792,2787.7,2786.8,1.812]
[1643808050013,0.67866017,2788.1,2786.8,3.81141474]
[1643808050014,1.52303096,2787.6,2786.8,3.81141474]
[1643808050213,1.52303096,2787.9,2786.9,1.0]
[1643808050413,1.70223096,2787.8,2786.9,1.0]
[1643808050612,1.70223096,2787.8,2786.8,0.812]
[1643808050613,1.52303096,2787.7,2786.8,3.78600611]
[1643808050813,0.22148274,2787.4,2786.9,1.3]
[1643808051249,0.22148274,2787.4,2786.8,1.6]
[1643808051446,1.52312082,2787.3,2786.8,0.3]
[1643808051654,0.22148274,2787.4,2786.8,1.0]
[1643808051947,0.22148274,2787.4,2786.7,0.6]
[1643808051948,1.52312594,2787.3,2786.7,0.3]
[1643808052148,1.70252594,2787.3,2786.7,0.3]
[1643808052348,1.52315921,2787.2,2786.4,1.0]
[1643808052548,0.1794,2787.3,2786.6,0.81162815]
[1643808052748,0.1794,2787.3,2786.6,1.11162815]
[1643808052948,1.52318166,2787.2,2786.6,1.11162815]
[1643808053555,1.52318166,2787.2,2786.2,2.10685154]
[1643808053956,1.52318166,2787.2,2786.1,9.8002]
[1643808054159,1.52318166,2787.2,2786.2,2.82753671]
[1643808054455,0.1794,2787.3,2786.5,0.78696035]
[1643808054700,0.1794,2787.3,2786.6,1.94675324]
[1643808054905,0.17847068,2787.3,2786.6,2.24675324]
[1643808055105,0.17847068,2787.3,2786.6,3.24675324]
[1643808055507,0.1794,2787.4,2787.0,0.86829598]
[1643808055708,0.1794,2787.4,2787.0,1.16829598]
[1643808056715,0.421125,2787.4,2787.0,1.16829598]
[1643808056912,1.52309795,2787.3,2787.0,0.3]
[1643808057109,0.1794,2787.4,2786.8,3.26212995]
[1643808057309,0.1794,2787.4,2786.9,1.0]
[1643808057509,0.18186413,2787.7,2786.9,1.0]
[1643808057709,1.5230194,2787.6,2787.0,2.54946401]
[1643808058010,3.11671632,2788.2,2787.0,3.07374039]
[1643808058011,0.18186413,2788.1,2787.0,3.07374039]
[1643808058208,0.19213626,2787.9,2787.1,1.0]
[1643808058452,2.29893734,2787.8,2787.2,3.44546811]
[1643808058657,1.52288199,2787.7,2787.2,0.512]
[1643808058856,1.52288199,2787.7,2787.2,1.112]
[1643808059456,0.25975294,2787.3,2787.2,0.6]
[1643808059857,0.25975294,2787.3,2786.9,0.3]
[1643808060255,0.25975294,2787.3,2786.8,0.6]
[1643808060658,0.25975294,2787.3,2786.5,1.6]
[1643808060856,0.25975294,2787.3,2786.5,2.44511484]
[1643808061255,1.52310344,2787.2,2786.5,1.6]
[1643808061655,1.52310344,2787.2,2786.5,0.6]
[1643808061861,1.52310344,2787.2,2786.5,1.0]
[1643808062055,1.52310344,2787.2,2786.4,3.39394]
[1643808062298,1.52310344,2787.2,2786.5,1.0]
[1643808062697,1.52310344,2787.2,2786.5,0.94369473]
[1643808062901,1.52310344,2787.2,2786.5,1.94369473]
[1643808064508,1.52310344,2787.2,2786.5,2.45569473]
[1643808065203,1.52310344,2787.2,2786.5,1.512]
[1643808065804,1.52310344,2787.2,2786.5,0.512]
[1643808066453,1.52310344,2787.2,2786.5,1.39639083]
[1643808068355,1.52310344,2787.2,2786.5,0.512]
[1643808068959,1.52310344,2787.2,2786.4,1.6]
[1643808069164,2.06,2787.1,2786.4,1.6]
[1643808069364,0.68401801,2786.6,2786.3,3.3029]
[1643808069566,0.68401801,2786.6,2785.9,1.1528]
[1643808069798,0.68401801,2786.6,2785.7,3.04926831]
[1643808070002,1.52310344,2786.5,2785.7,3.04926831]
[1643808070198,1.52310344,2786.5,2785.7,0.01246831]
[1643808070399,1.52310344,2786.5,2785.8,0.22353785]
[1643808070600,1.52310344,2786.5,2786.0,0.84227319]
[1643808070802,0.68401801,2786.6,2786.0,0.84227319]
[1643808071102,0.68401801,2786.6,2785.8,0.3]
[1643808071302,0.68401801,2786.6,2785.7,0.82446831]
[1643808071503,0.68401801,2786.6,2785.8,0.3]
[1643808071701,0.68401801,2786.6,2785.8,1.19726]
[1643808071902,0.68401801,2786.6,2785.8,2.11957166]
[1643808072116,1.70312659,2786.5,2785.8,0.6]
[1643808072303,1.52372659,2786.4,2785.8,0.3]
[1643808072504,1.52372659,2786.4,2785.4,11.6657]
[1643808072703,1.52372659,2786.4,2785.4,11.9657]
[1643808072902,1.52372659,2786.4,2785.4,12.2657]
[1643808073109,1.52372659,2786.4,2785.6,0.93948232]
[1643808073309,1.52128978,2786.4,2785.6,0.93948232]
[1643808073574,1.52128978,2786.4,2785.6,1.53948232]
[1643808074578,0.1794,2786.5,2785.6,1.53948232]
[1643808075177,0.20666116,2786.4,2785.6,1.53948232]
[1643808075579,0.1794,2786.6,2786.1,0.72998978]
[1643808075784,1.1852,2786.7,2786.1,1.02998978]
[1643808075785,0.1794,2786.7,2786.1,1.02998978]
[1643808075978,0.1794,2786.7,2786.2,0.512]
[1643808076178,0.13819997,2786.9,2786.2,0.512]
[1643808076179,0.31759997,2786.9,2786.2,0.512]
[1643808076579,1.10120787,2786.7,2786.2,0.512]
[1643808076779,1.10120787,2786.7,2785.6,2.9796717]
[1643808076979,0.1794,2786.6,2785.7,0.512]
[1643808077197,1.10120787,2786.7,2785.7,0.512]
[1643808077602,1.10120787,2786.7,2786.2,0.6966216]
[1643808077800,1.10120787,2786.7,2786.2,1.2086216]
[1643808078000,0.31759997,2786.9,2786.2,1.5086216]
[1643808078200,0.31759997,2786.9,2786.2,1.8086216]
[1643808078605,0.31759997,2786.9,2786.2,2.8086216]
[1643808078805,0.31759997,2786.9,2786.2,1.2086216]
[1643808079508,0.1794,2786.9,2786.3,0.89711]
[1643808079705,2.44069247,2787.3,2786.4,0.512]
[1643808079706,0.1794,2787.2,2786.4,0.512]
[1643808080107,0.1794,2787.2,2786.4,0.812]
[1643808080303,0.1794,2787.4,2786.4,0.812]
[1643808080506,0.00266413,2787.3,2787.0,0.90460675]
[1643808080707,0.00266413,2787.3,2786.9,0.512]
[1643808080708,0.1792,2787.2,2786.9,0.512]
[1643808081348,0.1794,2787.5,2786.9,0.812]
[1643808081749,0.76601605,2787.1,2786.9,0.812]
[1643808082150,0.76601605,2787.1,2785.8,3.6783944]
[1643808082151,2.07278106,2787.0,2785.8,3.6783944]
[1643808082349,0.1794,2786.9,2785.8,4.5622944]
[1643808082557,0.1794,2786.9,2785.8,4.4491]
[1643808083351,0.69627241,2786.4,2785.8,5.28920089]
[1643808084158,0.69627241,2786.4,2785.8,1.65210089]
[1643808084459,0.69627241,2786.4,2785.8,1.812]
[1643808084697,0.26278364,2786.1,2785.8,0.812]
[1643808084901,0.26278364,2786.1,2785.5,8.0058]
[1643808085103,0.26278364,2786.1,2785.2,3.9155]
[1643808085303,0.26278364,2786.1,2785.4,0.75250229]
[1643808085698,0.1794,2786.3,2785.4,0.75250229]
[1643808086497,0.1794,2786.3,2785.4,1.35250229]
[1643808086899,0.93235469,2785.9,2785.4,1.35250229]
[1643808089454,0.93235469,2785.9,2785.3,0.01273571]
[1643808089656,0.93235469,2785.9,2785.1,0.71924321]
[1643808089854,0.93235469,2785.9,2785.2,0.512]
[1643808090455,0.1794,2786.2,2785.2,0.512]
[1643808090655,1.07682,2786.5,2785.2,0.512]
[1643808090855,0.89742,2786.5,2785.2,0.812]
[1643808091056,0.1794,2786.4,2785.2,0.812]
[1643808091256,0.1794,2786.4,2785.2,1.112]
[1643808091456,2.28937547,2786.4,2785.2,1.112]
[1643808091857,0.21460609,2786.0,2785.3,0.89742]
[1643808092057,0.82603371,2785.9,2785.3,1.62471984]
[1643808092301,0.82603371,2785.9,2785.3,0.89742]
[1643808092499,3.0618725,2785.9,2784.9,4.98452]
[1643808092700,0.1794,2785.9,2784.9,4.98452]
[1643808092903,2.27952755,2786.1,2784.9,4.98452]
[1643808092904,0.1794,2786.0,2784.9,4.98452]
[1643808093101,0.1794,2786.0,2784.7,3.9629]
[1643808093302,1.52418279,2785.9,2784.7,3.9629]
[1643808093506,0.1794,2785.8,2784.7,3.9629]
[1643808093701,2.42188559,2785.7,2785.0,0.25176561]
[1643808093903,0.75882852,2785.5,2784.9,0.78458872]
[1643808094103,0.1794,2785.4,2784.9,0.78458872]
[1643808094308,0.1794,2785.4,2784.7,3.9629]
[1643808094504,0.1794,2785.4,2784.6,0.512]
[1643808094903,0.1794,2785.4,2784.6,0.812]
[1643808095106,0.1794,2785.4,2784.7,0.20990052]
[1643808095308,0.1794,2785.4,2784.7,0.91200467]
[1643808095611,0.93822852,2785.5,2784.7,0.91200467]
[1643808096457,0.75882852,2785.5,2784.7,0.91200467]
[1643808097057,0.75739286,2785.5,2784.7,0.91200467]
[1643808098056,0.94422777,2785.5,2784.7,0.91200467]
[1643808099062,1.0771,2785.6,2784.7,2.10962467]
[1643808099063,0.1794,2785.6,2784.7,2.10962467]
[1643808099263,0.1794,2785.7,2784.8,0.512]
[1643808099465,1.1358,2785.9,2784.8,0.6914]
[1643808099706,0.1794,2785.8,2784.8,1.9914]
[1643808099907,0.1794,2785.8,2784.8,0.9914]
[1643808100107,0.1794,2785.8,2784.8,1.9914]
[1643808100108,0.7049797,2785.4,2784.8,1.9914]
[1643808100307,0.1794,2785.8,2784.8,1.812]
[1643808101109,0.89766,2785.6,2785.2,0.26753956]
[1643808101409,0.74885921,2785.7,2785.2,0.78912107]
[1643808102617,0.89765,2785.6,2784.8,0.1794]
[1643808102812,0.89765,2785.6,2784.6,7.47]
[1643808102813,0.3,2785.5,2784.6,7.47]
[1643808103111,0.4794,2785.5,2784.6,7.47]
[1643808103314,1.3771565,2785.6,2784.6,7.47]
[1643808103556,0.89778,2785.3,2784.9,0.22193073]
[1643808103755,1.3771565,2785.6,2784.9,0.22193073]
[1643808103756,0.1794,2785.6,2784.9,0.22193073]
[1643808104453,0.1794,2785.6,2785.3,0.708062]
[1643808104853,0.1794,2785.6,2785.4,0.22647152]
[1643808105054,7.0133,2786.3,2785.4,0.22647152]
[1643808105055,0.1794,2786.0,2785.4,0.22647152]
[1643808105256,0.1794,2786.2,2785.4,0.512]
[1643808105457,2.35309308,2786.7,2785.4,0.512]
[1643808105654,1.52407543,2786.6,2785.4,0.512]
[1643808105854,2.34801679,2786.5,2785.4,0.512]
[1643808106058,0.67347028,2785.8,2785.4,0.512]
[1643808106455,0.89213289,2785.8,2785.4,0.512]
[1643808106653,0.89213289,2785.8,2784.9,1.0]
[1643808107055,0.89213289,2785.8,2784.8,8.3468]
[1643808107056,3.82433547,2785.7,2784.8,0.1794]
[1643808107315,0.93654223,2785.0,2784.8,0.1794]
[1643808107515,1.70194223,2785.0,2784.6,0.1794]
[1643808108519,0.7654,2785.0,2784.6,0.1794]
[1643808108725,3.3002,2785.6,2784.5,0.88516062]
[1643808108726,1.0771126,2785.5,2784.5,0.88516062]
[1643808108919,0.8977126,2785.5,2784.5,1.39716062]
[1643808109519,0.74625517,2785.4,2784.5,1.39716062]
[1643808109717,0.89775,2785.4,2784.5,3.5472232]
[1643808109917,0.89775,2785.4,2784.5,3.52706066]
[1643808110119,0.89775,2785.4,2784.6,1.0]
[1643808110318,0.89775,2785.4,2784.5,0.6914]
[1643808110817,0.94283849,2785.2,2784.7,0.70577338]
[1643808111458,1.84061849,2785.2,2784.7,0.70577338]
[1643808112059,1.84061849,2785.2,2784.5,0.1794]
[1643808113260,1.84061849,2785.2,2784.7,0.84150163]
[1643808114061,1.84061849,2785.2,2784.5,0.1794]
[1643808114262,1.84061849,2785.2,2784.4,0.1794]
[1643808114905,0.3,2785.1,2784.4,0.1794]
[1643808115102,0.89786,2784.9,2784.4,0.1794]
[1643808115308,0.89786,2784.9,2784.3,1.29085888]
[1643808118310,1.1978524,2785.1,2784.3,1.29085888]
[1643808118863,0.8978524,2785.1,2784.3,1.29085888]
[1643808119069,0.8978524,2785.1,2784.3,2.18863888]
[1643808119865,0.8978524,2785.1,2784.3,1.29085888]
[1643808120966,0.8978,2785.2,2784.3,2.78863888]
[1643808121165,0.8977708,2785.3,2784.3,2.24899155]
[1643808121369,5.217,2785.4,2784.3,1.05121155]
[1643808121370,3.217,2785.4,2784.3,1.05121155]
[1643808121573,0.4794,2785.4,2784.3,1.05121155]
[1643808121768,0.90903864,2785.2,2784.3,1.05121155]
[1643808121969,0.90903864,2785.2,2784.8,0.67083088]
[1643808122219,1.20903864,2785.2,2784.5,0.22898155]
[1643808122424,1.20903864,2785.2,2784.3,0.1794]
[1643808122619,0.1794,2785.1,2784.3,0.1794]
[1643808122822,1.9751109,2785.1,2784.2,1.7]
[1643808123120,0.8978409,2785.1,2784.3,0.89777]
[1643808123319,0.1794,2785.4,2784.3,0.89777]
[1643808123728,0.1794,2785.6,2784.3,1.07717]
[1643808124129,1.07361827,2785.6,2784.3,1.07717]
[1643808124726,1.97136827,2785.6,2784.3,1.07717]
[1643808124926,4.1201286,2785.6,2784.3,1.07717]
[1643808125226,2.86913467,2785.6,2785.0,0.86669339]
[1643808126070,1.07715,2785.6,2785.0,1.16669339]
[1643808126369,0.1794,2785.6,2785.0,1.46669339]
[1643808126567,1.07708,2786.0,2785.1,0.512]
[1643808126771,1.52427694,2785.9,2785.1,0.812]
[1643808126969,0.1794,2785.8,2785.1,0.812]
[1643808127170,6.78588593,2786.1,2785.6,0.91734716]
[1643808127171,0.1794,2786.0,2785.6,0.91734716]
[1643808127367,1.52426865,2785.9,2785.3,0.512]
[1643808128373,1.52426865,2785.9,2785.3,1.41736468]
[1643808129169,0.19481888,2785.8,2785.3,1.41736468]
[1643808129372,1.52426865,2785.7,2785.3,1.41736468]
[1643808130015,0.1794,2786.0,2785.3,1.41736468]
[1643808130215,1.52428886,2785.9,2785.3,1.41736468]
[1643808130614,1.52428886,2785.9,2785.3,0.512]
[1643808130815,0.18931344,2785.4,2785.3,0.512]
[1643808131117,0.18931344,2785.4,2784.9,1.0]
[1643808131118,0.18931344,2785.4,2784.9,1.812]
[1643808131714,0.18931344,2785.4,2784.9,0.812]
[1643808131921,0.89765,2785.9,2785.2,0.93731974]
[1643808132125,1.52437001,2785.8,2785.2,0.93731974]
[1643808132821,0.76562257,2785.6,2785.2,1.23731974]
[1643808133319,1.52438684,2785.5,2785.2,0.93731974]
[1643808133559,1.52438684,2785.5,2784.9,0.812]
[1643808134162,0.1794,2786.0,2785.0,0.3]
[1643808134366,1.52435935,2785.9,2784.9,0.812]
[1643808134961,1.52435935,2785.9,2785.0,0.3]
[1643808135365,0.80337415,2785.5,2785.0,1.20103624]
[1643808135565,1.52435935,2785.4,2785.0,0.3]
[1643808135768,2.12987012,2785.3,2784.8,0.3]